fUSD/lending_fUSD_20260530
["ID","MTS","AMOUNT","RATE_DAILY","PERIOD"]
[423476196,1780155165000,-496.00897814,0.00030584,2]
[423476194,1780155165000,-249.64690829,0.00030584,2]
[423476197,1780155165000,-154.53181041,0.00030584,2]
[423476200,1780155165000,-166.92179462,0.00030584,2]
[423476198,1780155165000,-626.68800988,0.00030584,2]
[423476199,1780155165000,-219.99386275,0.00030584,2]
[423476201,1780155165000,-484.71922075,0.00030584,2]
[423476150,1780155165000,-652.33601494,0.00030571,7]
[423476176,1780155165000,-293.92866418,0.00030581,2]
[423476174,1780155165000,-163.04725379,0.00030581,2]
[423476181,1780155165000,-225.00565118,0.00030581,2]
[423476173,1780155165000,-259.16584556,0.00030581,2]
[423476145,1780155165000,-606.76483683,0.00030571,7]
[423476170,1780155165000,-361.43522149,0.00030581,2]
[423476151,1780155165000,-476.28299495,0.00030571,7]
[423476153,1780155165000,-348.33480178,0.00030581,2]
[423476147,1780155165000,-616.67214822,0.00030571,7]
[423476148,1780155165000,-511.2354123,0.00030571,7]
[423476144,1780155165000,-591.43456747,0.00030571,7]
[423476152,1780155165000,-229.066633,0.00030581,2]
[423476154,1780155165000,-459.25340183,0.00030581,2]
[423476157,1780155165000,-493.1652034,0.00030581,2]
[423476165,1780155165000,-224.09907359,0.00030581,2]
[423476164,1780155165000,-337.4534884,0.00030581,2]
[423476156,1780155165000,-516.76681142,0.00030581,2]
[423476149,1780155165000,-451.49394837,0.00030571,7]
[423476171,1780155165000,-204.56793463,0.00030581,2]
[423476169,1780155165000,-573.64950815,0.00030581,2]
[423476160,1780155165000,-887.56114954,0.00030581,2]
[423476168,1780155165000,-525.3414443,0.00030581,2]
[423476172,1780155165000,-801.5848354,0.00030581,2]
[423476175,1780155165000,-280.97741246,0.00030581,2]
[423476167,1780155165000,-620.54350782,0.00030581,2]
[423476161,1780155165000,-463.84714843,0.00030581,2]
[423476166,1780155165000,-150.03280916,0.00030581,2]
[423476159,1780155165000,-155.25842312,0.00030581,2]
[423476158,1780155165000,-577.76318021,0.00030581,2]
[423476162,1780155165000,-292.34657653,0.00030581,2]
[423476163,1780155165000,-572.03715008,0.00030581,2]
[423476241,1780155166000,-300.0,0.00031,2]
[423476237,1780155166000,-600.0,0.00030845,30]
[423476238,1780155166000,-152.0,0.00030863,23]
[423476239,1780155166000,-309.6,0.00030877,120]
[423476240,1780155166000,-701.86967386,0.00031,2]
[423476231,1780155166000,-1264.4,0.000307,2]
[423476235,1780155166000,-1175.98,0.00030741,15]
[423476234,1780155166000,-2318.0,0.0003072,3]
[423476242,1780155166000,-215.51,0.00031,14]
[423476233,1780155166000,-1758.89,0.000307,2]
[423476244,1780155166000,-170.62717514,0.00031,14]
[423476236,1780155166000,-1637.64399571,0.0003084,2]
[423476243,1780155166000,-10139.71644608,0.00031,2]
[423476258,1780155166000,-660.56526917,0.00031156,7]
[423476245,1780155166000,-150.310134,0.00031013,2]
[423476250,1780155166000,-324.03231756,0.00031125,7]
[423476254,1780155166000,-798.8027429,0.00031147,2]
[423476255,1780155166000,-657.08869781,0.00031147,2]
[423476247,1780155166000,-500.0,0.00031059,21]
[423476248,1780155166000,-200.0,0.00031096,2]
[423476251,1780155166000,-745.73447689,0.00031141,2]
[423476253,1780155166000,-709.41380059,0.00031147,2]
[423476249,1780155166000,-309.6,0.00031123,120]
[423476252,1780155166000,-702.64283756,0.00031145,2]
[423476261,1780155166000,-304.82514643,0.00031156,7]
[423476232,1780155166000,-12300.7,0.000307,2]
[423476246,1780155166000,-351.21792606,0.0003105,30]
[423476227,1780155166000,-793.42,0.00030697,7]
[423476205,1780155166000,-1074.07761835,0.00030584,2]
[423476230,1780155166000,-11610.85,0.000307,2]
[423476203,1780155166000,-203.15629991,0.00030584,2]
[423476202,1780155166000,-518.44799336,0.00030584,2]
[423476204,1780155166000,-201.47250357,0.00030584,2]
[423476206,1780155166000,-530.49192663,0.00030588,7]
[423476211,1780155166000,-305.10758997,0.00030588,7]
[423476207,1780155166000,-390.19591139,0.00030588,7]
[423476208,1780155166000,-277.31540027,0.00030588,7]
[423476215,1780155166000,-653.0,0.00030683,30]
[423476216,1780155166000,-800.0,0.00030684,30]
[423476210,1780155166000,-495.07104896,0.00030588,7]
[423476217,1780155166000,-414.0,0.00030684,30]
[423476213,1780155166000,-1229.0,0.00030629,7]
[423476228,1780155166000,-7805.96,0.000307,2]
[423476209,1780155166000,-150.7777502,0.00030588,7]
[423476214,1780155166000,-309.6,0.0003063,120]
[423476218,1780155166000,-1342.0,0.00030684,30]
[423476219,1780155166000,-1314.0,0.00030684,30]
[423476220,1780155166000,-675.0,0.00030684,30]
[423476221,1780155166000,-502.0,0.00030684,30]
[423476262,1780155166000,-324.43114156,0.00031156,7]
[423476226,1780155166000,-1879.0,0.00030693,30]
[423476223,1780155166000,-467.0,0.00030693,30]
[423476225,1780155166000,-1861.0,0.00030693,30]
[423476222,1780155166000,-1966.0,0.00030693,30]
[423476224,1780155166000,-480.0,0.00030693,30]
[423476229,1780155166000,-3351.71,0.000307,2]
[423476212,1780155166000,-50339.39,0.000306,14]
[423476256,1780155166000,-402.94500715,0.00031154,2]
[423476293,1780155166000,-164.02260231,0.00031162,7]
[423476260,1780155166000,-618.10849409,0.00031156,7]
[423476300,1780155166000,-681.6472164,0.00031162,7]
[423476298,1780155166000,-822.22953096,0.00031162,7]
[423476301,1780155166000,-601.99193116,0.00031162,7]
[423476297,1780155166000,-809.01978244,0.00031162,7]
[423476296,1780155166000,-788.5794233,0.00031162,7]
[423476292,1780155166000,-331.00823145,0.00031162,7]
[423476295,1780155166000,-610.98904212,0.00031162,7]
[423476299,1780155166000,-723.40083595,0.00031162,7]
[423476302,1780155166000,-301.5555004,0.00031162,7]
[423476311,1780155166000,-612.3378691,0.00031172,2]
[423476303,1780155166000,-869.78135325,0.00031162,7]
[423476308,1780155166000,-160.4413244,0.00031172,2]
[423476294,1780155166000,-829.83953739,0.00031162,7]
[423476304,1780155166000,-635.04399326,0.00031162,7]
[423476306,1780155166000,-1585.1,0.00031162,2]
[423476309,1780155166000,-160.4413219,0.00031172,2]
[423476307,1780155166000,-327.21714081,0.00031172,2]
[423476313,1780155166000,-796.67382354,0.00031172,2]
[423476312,1780155166000,-522.50220266,0.00031172,2]
[423476310,1780155166000,-458.133266,0.00031172,2]
[423476314,1780155166000,-315.40071612,0.00031172,2]
[423476317,1780155166000,-689.02241523,0.00031172,2]
[423476315,1780155166000,-430.24487793,0.00031172,2]
[423476316,1780155166000,-160.44131725,0.00031172,2]
[423476319,1780155166000,-657.55360454,0.00031172,2]
[423476318,1780155166000,-168.88697532,0.00031172,2]
[423476305,1780155166000,-1584.16,0.00031162,2]
[423476291,1780155166000,-301.55018014,0.00031162,7]
[423476257,1780155166000,-213.04846433,0.00031156,7]
[423476289,1780155166000,-164.94811919,0.00031162,7]
[423476265,1780155166000,-648.14826849,0.00031156,7]
[423476259,1780155166000,-159.34080076,0.00031156,7]
[423476264,1780155166000,-562.13129836,0.00031156,7]
[423476263,1780155166000,-666.88140227,0.00031156,7]
[423476266,1780155166000,-551.37323193,0.00031156,7]
[423476267,1780155166000,-636.35054888,0.00031156,7]
[423476270,1780155166000,-600.64699541,0.00031156,7]
[423476288,1780155166000,-555.81542163,0.00031162,2]
[423476272,1780155166000,-229.33649753,0.00031156,7]
[423476268,1780155166000,-318.84988709,0.00031156,7]
[423476274,1780155166000,-340.66294342,0.00031156,7]
[423476271,1780155166000,-168.95311079,0.00031156,7]
[423476269,1780155166000,-751.00760413,0.00031156,7]
[423476278,1780155166000,-677.64274398,0.00031161,7]
[423476275,1780155166000,-342.74942695,0.00031156,7]
[423476273,1780155166000,-161.87142922,0.00031156,7]
[423476287,1780155166000,-423.2260397,0.00031162,7]
[423476284,1780155166000,-609.13872775,0.00031162,7]
[423476283,1780155166000,-523.42570188,0.00031162,7]
[423476281,1780155166000,-414.00856295,0.00031161,7]
[423476279,1780155166000,-491.45959357,0.00031161,7]
[423476282,1780155166000,-529.41031767,0.00031161,7]
[423476290,1780155166000,-708.05498156,0.00031162,7]
[423476286,1780155166000,-823.24237418,0.00031162,7]
[423476280,1780155166000,-163.29326204,0.00031161,7]
[423476276,1780155166000,-450.14653832,0.00031158,2]
[423476277,1780155166000,-1585.1,0.00031161,2]
[423476285,1780155166000,-166.20206057,0.00031162,7]
[423476362,1780155167000,-168.80963344,0.00031172,2]
[423476352,1780155167000,-308.98493761,0.00031172,2]
[423476359,1780155167000,-453.62393285,0.00031172,2]
[423476358,1780155167000,-1216.77913041,0.00031172,2]
[423476357,1780155167000,-157.57528966,0.00031172,2]
[423476349,1780155167000,-644.68633245,0.00031172,2]
[423476355,1780155167000,-501.72575743,0.00031172,2]
[423476350,1780155167000,-170.16501292,0.00031172,2]
[423476356,1780155167000,-450.01130235,0.00031172,2]
[423476353,1780155167000,-165.56808879,0.00031172,2]
[423476351,1780155167000,-718.09445313,0.00031172,2]
[423476363,1780155167000,-588.06019055,0.00031172,2]
[423476376,1780155167000,-160.53448418,0.00031175,2]
[423476371,1780155167000,-390.1134791,0.00031172,2]
[423476361,1780155167000,-161.55200155,0.00031172,2]
[423476366,1780155167000,-170.81388289,0.00031172,2]
[423476370,1780155167000,-724.67910841,0.00031172,2]
[423476372,1780155167000,-634.66376757,0.00031172,2]
[423476368,1780155167000,-164.43167624,0.00031172,2]
[423476373,1780155167000,-304.72770065,0.00031172,2]
[423476369,1780155167000,-1277.58179219,0.00031172,2]
[423476367,1780155167000,-441.61375804,0.00031172,2]
[423476365,1780155167000,-160.5133412,0.00031172,2]
[423476375,1780155167000,-823.90090786,0.00031172,2]
[423476374,1780155167000,-487.15190865,0.00031172,2]
[423476354,1780155167000,-168.85976531,0.00031172,2]
[423476364,1780155167000,-178.1457575,0.00031172,2]
[423476345,1780155167000,-346.53905753,0.00031172,2]
[423476331,1780155167000,-384.53856304,0.00031172,2]
[423476343,1780155167000,-561.95482492,0.00031172,2]
[423476383,1780155167000,-661.34530419,0.00031175,2]
[423476325,1780155167000,-762.7162001,0.00031172,2]
[423476321,1780155167000,-310.51684625,0.00031172,2]
[423476322,1780155167000,-1183.41486605,0.00031172,2]
[423476324,1780155167000,-155.68791914,0.00031172,2]
[423476320,1780155167000,-770.35090695,0.00031172,2]
[423476323,1780155167000,-695.77072265,0.00031172,2]
[423476336,1780155167000,-764.86601087,0.00031172,2]
[423476326,1780155167000,-584.69315307,0.00031172,2]
[423476327,1780155167000,-506.1802326,0.00031172,2]
[423476329,1780155167000,-164.98515328,0.00031172,2]
[423476328,1780155167000,-448.19814717,0.00031172,2]
[423476344,1780155167000,-587.85732836,0.00031172,2]
[423476330,1780155167000,-300.06561831,0.00031172,2]
[423476332,1780155167000,-827.39134377,0.00031172,2]
[423476333,1780155167000,-700.45525906,0.00031172,2]
[423476335,1780155167000,-329.7500757,0.00031172,2]
[423476338,1780155167000,-409.13586925,0.00031172,2]
[423476346,1780155167000,-212.79117602,0.00031172,2]
[423476347,1780155167000,-222.24895007,0.00031172,2]
[423476339,1780155167000,-1068.77978053,0.00031172,2]
[423476340,1780155167000,-411.54653131,0.00031172,2]
[423476337,1780155167000,-542.15283223,0.00031172,2]
[423476348,1780155167000,-167.94058196,0.00031172,2]
[423476341,1780155167000,-518.33169111,0.00031172,2]
[423476342,1780155167000,-326.09450759,0.00031172,2]
[423476334,1780155167000,-167.52424497,0.00031172,2]
[423476384,1780155167000,-319.04746736,0.00031175,2]
[423476360,1780155167000,-168.28490256,0.00031172,2]
[423476378,1780155167000,-499.29381657,0.00031175,2]
[423476418,1780155167000,-457.66138496,0.00031179,7]
[423476411,1780155167000,-173.0522868,0.00031179,7]
[423476421,1780155167000,-1215.83,0.000312,7]
[423476413,1780155167000,-585.29386708,0.00031179,7]
[423476415,1780155167000,-165.12243611,0.00031179,7]
[423476419,1780155167000,-1229.0,0.00031184,8]
[423476410,1780155167000,-1432.10349113,0.00031175,2]
[423476412,1780155167000,-707.32256884,0.00031179,7]
[423476414,1780155167000,-554.63080055,0.00031179,7]
[423476416,1780155167000,-166.39104305,0.00031179,7]
[423476420,1780155167000,-50339.39,0.000312,14]
[423476433,1780155167000,-250.0,0.00031493,7]
[423476422,1780155167000,-261.07,0.00031208,120]
[423476424,1780155167000,-309.6,0.0003137,120]
[423476425,1780155167000,-152.0,0.00031407,24]
[423476426,1780155167000,-20232.87095048,0.0003143,4]
[423476427,1780155167000,-800.0,0.0003144,60]
[423476429,1780155167000,-856.09,0.00031462,30]
[423476432,1780155167000,-250.0,0.00031493,7]
[423476428,1780155167000,-2900.0,0.0003144,60]
[423476430,1780155167000,-250.0,0.00031493,7]
[423476431,1780155167000,-250.0,0.00031493,7]
[423476434,1780155167000,-50339.39,0.000315,14]
[423476438,1780155167000,-187.79,0.0003152,13]
[423476436,1780155167000,-150.0,0.000315,2]
[423476435,1780155167000,-200.87364833,0.000315,2]
[423476377,1780155167000,-635.44041164,0.00031175,2]
[423476417,1780155167000,-660.09473194,0.00031179,7]
[423476408,1780155167000,-160.44130133,0.00031175,2]
[423476423,1780155167000,-163.0,0.0003136,3]
[423476409,1780155167000,-306.63393109,0.00031175,2]
[423476380,1780155167000,-160.76174183,0.00031175,2]
[423476406,1780155167000,-406.31259982,0.00031175,2]
[423476379,1780155167000,-160.51334466,0.00031175,2]
[423476381,1780155167000,-613.93628665,0.00031175,2]
[423476382,1780155167000,-160.44451345,0.00031175,2]
[423476390,1780155167000,-160.51336803,0.00031175,2]
[423476392,1780155167000,-333.84358923,0.00031175,2]
[423476391,1780155167000,-160.44131784,0.00031175,2]
[423476396,1780155167000,-160.44452211,0.00031175,2]
[423476387,1780155167000,-835.58401318,0.00031175,2]
[423476386,1780155167000,-349.01119127,0.00031175,2]
[423476389,1780155167000,-439.9877255,0.00031175,2]
[423476393,1780155167000,-160.37181137,0.00031175,2]
[423476388,1780155167000,-170.46889459,0.00031175,2]
[423476385,1780155167000,-309.06362081,0.00031175,2]
[423476394,1780155167000,-727.07883113,0.00031175,2]
[423476399,1780155167000,-160.85797927,0.00031175,2]
[423476397,1780155167000,-160.44451769,0.00031175,2]
[423476405,1780155167000,-150.13760213,0.00031175,2]
[423476401,1780155167000,-160.44132187,0.00031175,2]
[423476437,1780155167000,-187.79,0.0003152,13]
[423476404,1780155167000,-160.44131631,0.00031175,2]
[423476407,1780155167000,-340.69208053,0.00031175,2]
[423476398,1780155167000,-160.51332921,0.00031175,2]
[423476402,1780155167000,-160.44131894,0.00031175,2]
[423476400,1780155167000,-691.26399115,0.00031175,2]
[423476395,1780155167000,-301.47109712,0.00031175,2]
[423476403,1780155167000,-160.44452253,0.00031175,2]
[423476452,1780155168000,-502.0,0.00031684,30]
[423476454,1780155168000,-467.0,0.00031693,30]
[423476455,1780155168000,-480.0,0.00031693,30]
[423476459,1780155168000,-932.16809612,0.00031732,2]
[423476460,1780155168000,-878.30354695,0.00031735,2]
[423476469,1780155168000,-885.06872695,0.00031752,7]
[423476463,1780155168000,-821.36087227,0.00031738,2]
[423476461,1780155168000,-886.76725074,0.00031738,2]
[423476458,1780155168000,-257.02,0.000317,2]
[423476453,1780155168000,-1966.0,0.00031693,30]
[423476462,1780155168000,-998.50342862,0.00031738,2]
[423476450,1780155168000,-1314.0,0.00031684,30]
[423476439,1780155168000,-187.8,0.0003152,13]
[423476451,1780155168000,-675.0,0.00031684,30]
[423476448,1780155168000,-414.0,0.00031684,30]
[423476449,1780155168000,-1342.0,0.00031684,30]
[423476445,1780155168000,-163.0,0.0003168,3]
[423476457,1780155168000,-1879.0,0.00031693,30]
[423476456,1780155168000,-1861.0,0.00031693,30]
[423476446,1780155168000,-653.0,0.00031683,30]
[423476442,1780155168000,-1030.94,0.00031648,7]
[423476443,1780155168000,-1011.06,0.00031648,7]
[423476441,1780155168000,-1080.87,0.00031646,7]
[423476444,1780155168000,-1063.54,0.00031648,7]
[423476440,1780155168000,-309.6,0.00031616,120]
[423476465,1780155168000,-772.63561762,0.00031747,7]
[423476447,1780155168000,-800.0,0.00031684,30]
[423476464,1780155168000,-1229.0,0.00031739,9]
[423476481,1780155168000,-805.85791556,0.00031763,2]
[423476468,1780155168000,-761.42340968,0.00031752,7]
[423476467,1780155168000,-810.18533561,0.00031747,7]
[423476495,1780155168000,-150.0,0.00031858,2]
[423476485,1780155168000,-794.30051455,0.00031765,2]
[423476491,1780155168000,-825.11841493,0.0003177,7]
[423476492,1780155168000,-578.0,0.00031799,7]
[423476494,1780155168000,-8311.4,0.000318,2]
[423476483,1780155168000,-905.84888551,0.00031763,2]
[423476484,1780155168000,-1596.97724024,0.00031763,2]
[423476490,1780155168000,-884.15321105,0.0003177,7]
[423476489,1780155168000,-1790.12936391,0.00031765,2]
[423476493,1780155168000,-50339.39,0.000318,14]
[423476487,1780155168000,-826.68163024,0.00031765,2]
[423476486,1780155168000,-767.42035831,0.00031765,2]
[423476488,1780155168000,-1044.48001647,0.00031765,2]
[423476480,1780155168000,-1335.97472566,0.00031763,2]
[423476476,1780155168000,-1479.26858256,0.00031763,2]
[423476482,1780155168000,-1520.97391301,0.00031763,2]
[423476477,1780155168000,-953.39525013,0.00031763,2]
[423476473,1780155168000,-793.80499158,0.00031752,7]
[423476472,1780155168000,-752.48991395,0.00031752,7]
[423476471,1780155168000,-852.0590205,0.00031752,7]
[423476478,1780155168000,-875.56907383,0.00031763,2]
[423476479,1780155168000,-956.08251359,0.00031763,2]
[423476474,1780155168000,-765.42233638,0.00031763,2]
[423476475,1780155168000,-821.94200567,0.00031763,2]
[423476470,1780155168000,-1027.7869137,0.00031752,7]
[423476466,1780155168000,-833.60175284,0.00031747,7]
[423476525,1780155169000,-30000.0,0.00032,2]
[423476539,1780155169000,-200.0,0.00032055,2]
[423476524,1780155169000,-592461.91165233,0.00032,120]
[423476528,1780155169000,-150.0,0.00032,120]
[423476523,1780155169000,-1450.91,0.00032,7]
[423476529,1780155169000,-2166.65,0.00032,2]
[423476526,1780155169000,-8311.4,0.00032,2]
[423476522,1780155169000,-2871.22,0.00032,7]
[423476527,1780155169000,-500.0,0.00032,14]
[423476530,1780155169000,-433.34,0.00032,2]
[423476535,1780155169000,-525.0,0.00032011,2]
[423476532,1780155169000,-228.74,0.00032,2]
[423476533,1780155169000,-159.81,0.00032,2]
[423476541,1780155169000,-187.79,0.00032068,13]
[423476538,1780155169000,-1356.0,0.00032011,2]
[423476531,1780155169000,-936.96,0.00032,2]
[423476540,1780155169000,-261.07,0.00032057,120]
[423476534,1780155169000,-700.0,0.00032,2]
[423476537,1780155169000,-1226.0,0.00032011,2]
[423476542,1780155169000,-187.79,0.00032068,13]
[423476519,1780155169000,-1264.4,0.00032,2]
[423476536,1780155169000,-1272.0,0.00032011,2]
[423476520,1780155169000,-12300.7,0.00032,2]
[423476504,1780155169000,-12300.7,0.000319,2]
[423476521,1780155169000,-1758.89,0.00032,2]
[423476545,1780155169000,-433.34,0.000321,2]
[423476496,1780155169000,-309.6,0.00031863,120]
[423476500,1780155169000,-7805.96,0.000319,2]
[423476499,1780155169000,-331.77,0.000319,2]
[423476497,1780155169000,-195.48,0.000319,2]
[423476498,1780155169000,-4336.64,0.000319,2]
[423476501,1780155169000,-3351.71,0.000319,2]
[423476502,1780155169000,-11610.85,0.000319,2]
[423476506,1780155169000,-152.0,0.0003195,25]
[423476505,1780155169000,-1758.89,0.000319,2]
[423476518,1780155169000,-11610.85,0.00032,2]
[423476503,1780155169000,-1264.4,0.000319,2]
[423476507,1780155169000,-351.21792606,0.00031963,30]
[423476508,1780155169000,-1584.63,0.00031987,2]
[423476510,1780155169000,-1483.74,0.00031996,2]
[423476509,1780155169000,-500.0,0.00031991,23]
[423476512,1780155169000,-1762.99244633,0.00032,2]
[423476515,1780155169000,-257.02,0.00032,2]
[423476513,1780155169000,-195.48,0.00032,2]
[423476514,1780155169000,-4336.64,0.00032,2]
[423476517,1780155169000,-3351.71,0.00032,2]
[423476516,1780155169000,-7805.96,0.00032,2]
[423476511,1780155169000,-325.0,0.00032,5]
[423476551,1780155169000,-1459.69,0.0003212,2]
[423476575,1780155169000,-901.782342,0.00032329,7]
[423476548,1780155169000,-159.81,0.000321,2]
[423476574,1780155169000,-901.782342,0.00032329,7]
[423476576,1780155169000,-901.782342,0.00032329,7]
[423476571,1780155169000,-901.782342,0.00032329,7]
[423476577,1780155169000,-901.782342,0.00032329,7]
[423476595,1780155169000,-1000.0,0.000325,7]
[423476580,1780155169000,-901.782342,0.00032329,7]
[423476579,1780155169000,-901.782342,0.00032329,7]
[423476578,1780155169000,-901.782342,0.00032329,7]
[423476581,1780155169000,-901.782342,0.00032329,7]
[423476582,1780155169000,-901.782342,0.00032329,7]
[423476573,1780155169000,-901.782342,0.00032329,7]
[423476583,1780155169000,-901.782342,0.00032329,7]
[423476591,1780155169000,-309.6,0.00032356,120]
[423476592,1780155169000,-189.480002,0.0003245,13]
[423476588,1780155169000,-901.782342,0.00032329,7]
[423476589,1780155169000,-901.782342,0.00032329,7]
[423476586,1780155169000,-901.782342,0.00032329,7]
[423476587,1780155169000,-901.782342,0.00032329,7]
[423476590,1780155169000,-901.782345,0.00032329,7]
[423476594,1780155169000,-152.0,0.00032494,26]
[423476593,1780155169000,-11500.0,0.00032463,7]
[423476543,1780155169000,-187.8,0.00032068,13]
[423476585,1780155169000,-901.782342,0.00032329,7]
[423476572,1780155169000,-901.782342,0.00032329,7]
[423476584,1780155169000,-901.782342,0.00032329,7]
[423476568,1780155169000,-910.36122834,0.000323,2]
[423476570,1780155169000,-1970.92,0.00032324,14]
[423476546,1780155169000,-936.96,0.000321,2]
[423476550,1780155169000,-309.6,0.0003211,120]
[423476549,1780155169000,-50339.39,0.000321,14]
[423476544,1780155169000,-2166.65,0.000321,2]
[423476555,1780155169000,-2500.0,0.00032194,2]
[423476558,1780155169000,-227.835265,0.000322,12]
[423476553,1780155169000,-208.62127429,0.00032127,67]
[423476560,1780155169000,-308.199333,0.000322,12]
[423476554,1780155169000,-172.30433363,0.00032165,120]
[423476556,1780155169000,-257.02,0.000322,2]
[423476547,1780155169000,-228.74,0.000321,2]
[423476567,1780155169000,-1229.0,0.00032294,9]
[423476557,1780155169000,-175.858333,0.000322,12]
[423476552,1780155169000,-208.62127429,0.00032127,67]
[423476562,1780155169000,-400.043471,0.000322,12]
[423476565,1780155169000,-1000.0,0.00032232,120]
[423476561,1780155169000,-171.634601,0.000322,12]
[423476566,1780155169000,-1000.0,0.00032232,90]
[423476569,1780155169000,-201.0,0.000323,120]
[423476563,1780155169000,-2671.5,0.0003221,5]
[423476564,1780155169000,-2000.0,0.00032232,7]
[423476559,1780155169000,-214.284733,0.000322,12]
[423476631,1780155170000,-1966.0,0.00032693,30]
[423476633,1780155170000,-480.0,0.00032693,30]
[423476630,1780155170000,-502.0,0.00032684,30]
[423476632,1780155170000,-467.0,0.00032693,30]
[423476624,1780155170000,-653.0,0.00032683,30]
[423476629,1780155170000,-675.0,0.00032684,30]
[423476628,1780155170000,-1314.0,0.00032684,30]
[423476625,1780155170000,-800.0,0.00032684,30]
[423476636,1780155170000,-442.119998,0.000327,14]
[423476627,1780155170000,-1342.0,0.00032684,30]
[423476634,1780155170000,-1861.0,0.00032693,30]
[423476635,1780155170000,-1879.0,0.00032693,30]
[423476640,1780155170000,-1585.14,0.00032818,2]
[423476643,1780155170000,-3579.71018336,0.0003287,7]
[423476637,1780155170000,-1102.58,0.00032789,7]
[423476639,1780155170000,-4919.76350059,0.000328,2]
[423476642,1780155170000,-309.6,0.00032849,120]
[423476646,1780155170000,-500.0,0.00032876,2]
[423476641,1780155170000,-1229.0,0.00032848,10]
[423476644,1780155170000,-396.13311075,0.00032876,2]
[423476645,1780155170000,-407.19239288,0.00032876,2]
[423476647,1780155170000,-500.0,0.00032876,2]
[423476651,1780155170000,-500.0,0.00032876,2]
[423476658,1780155170000,-300.0,0.00032876,2]
[423476638,1780155170000,-1584.16,0.00032796,2]
[423476626,1780155170000,-414.0,0.00032684,30]
[423476597,1780155170000,-221.060001,0.00032533,13]
[423476622,1780155170000,-953.16061745,0.00032652,2]
[423476601,1780155170000,-187.79,0.00032616,13]
[423476596,1780155170000,-1000.0,0.000325,7]
[423476599,1780155170000,-309.6,0.00032603,120]
[423476650,1780155170000,-423.17325615,0.00032876,2]
[423476598,1780155170000,-350.0,0.00032578,25]
[423476602,1780155170000,-187.8,0.00032616,13]
[423476600,1780155170000,-187.79,0.00032616,13]
[423476604,1780155170000,-1053.96425634,0.00032621,2]
[423476603,1780155170000,-1118.60171534,0.00032617,2]
[423476610,1780155170000,-1000.32210341,0.00032633,7]
[423476609,1780155170000,-927.16274114,0.00032633,7]
[423476608,1780155170000,-1141.98545966,0.00032623,2]
[423476623,1780155170000,-2148.1552367,0.00032652,2]
[423476607,1780155170000,-985.63304672,0.00032623,2]
[423476605,1780155170000,-1064.12070088,0.00032623,2]
[423476611,1780155170000,-952.56598989,0.00032638,7]
[423476613,1780155170000,-986.33040681,0.00032649,2]
[423476612,1780155170000,-918.50680366,0.00032649,2]
[423476615,1780155170000,-1144.07430015,0.00032649,2]
[423476614,1780155170000,-1775.12229908,0.00032649,2]
[423476616,1780155170000,-1050.68288859,0.00032649,2]
[423476617,1780155170000,-1603.1696708,0.00032649,2]
[423476618,1780155170000,-967.02949867,0.00032649,2]
[423476619,1780155170000,-1825.16869562,0.00032649,2]
[423476621,1780155170000,-1087.01866262,0.00032649,2]
[423476620,1780155170000,-1916.37268829,0.00032649,2]
[423476606,1780155170000,-1198.20411435,0.00032623,2]
[423476653,1780155170000,-500.0,0.00032876,2]
[423476649,1780155170000,-500.0,0.00032876,2]
[423476657,1780155170000,-500.0,0.00032876,2]
[423476695,1780155170000,-1000.0,0.00032877,10]
[423476684,1780155170000,-1000.0,0.00032877,10]
[423476687,1780155170000,-1000.0,0.00032877,10]
[423476686,1780155170000,-1000.0,0.00032877,10]
[423476688,1780155170000,-1000.0,0.00032877,10]
[423476689,1780155170000,-1000.0,0.00032877,10]
[423476691,1780155170000,-1000.0,0.00032877,10]
[423476694,1780155170000,-1000.0,0.00032877,10]
[423476690,1780155170000,-1000.0,0.00032877,10]